bitfinex/quotes_BTCUSD_20250206
["timestamp","ask_amount","ask_price","bid_price","bid_amount"]
[1738865900930,0.41754597,96498.0,96497.0,2.65727996]
[1738865901133,0.26210297,96498.0,96497.0,2.65727996]
[1738865901481,0.63004962,96498.0,96497.0,2.65727996]
[1738865901636,0.67864962,96498.0,96497.0,2.57917996]
[1738865902441,0.67864962,96498.0,96497.0,2.51017996]
[1738865902786,0.88624962,96498.0,96497.0,2.51017996]
[1738865902990,1.81351962,96498.0,96497.0,2.51117996]
[1738865903213,1.26672762,96498.0,96497.0,2.51117996]
[1738865903411,1.28972762,96498.0,96497.0,2.25497996]
[1738865903629,1.28972762,96498.0,96497.0,2.07687996]
[1738865903854,1.27772762,96498.0,96497.0,2.07587996]
[1738865904083,1.27772762,96498.0,96497.0,2.07687996]
[1738865904295,2.67284862,96498.0,96497.0,2.07687996]
[1738865904541,3.32577862,96498.0,96497.0,2.07687996]
[1738865904741,2.66501762,96498.0,96497.0,2.07687996]
[1738865905158,1.51566862,96498.0,96497.0,2.07687996]
[1738865905568,1.50634862,96498.0,96497.0,2.07687996]
[1738865905768,0.75216662,96498.0,96497.0,2.07687996]
[1738865905976,0.25460297,96498.0,96497.0,2.07687996]
[1738865906190,0.022,96498.0,96497.0,2.07687996]
[1738865906621,0.12450365,96498.0,96497.0,2.07687996]
[1738865907004,0.27450365,96498.0,96497.0,2.07687996]
[1738865907175,0.42694665,96498.0,96497.0,2.07687996]
[1738865907356,0.42694665,96498.0,96497.0,2.07587996]
[1738865907357,1.20070615,96498.0,96497.0,2.07587996]
[1738865907562,1.61182615,96498.0,96497.0,2.05687996]
[1738865907767,1.73692615,96498.0,96497.0,2.05687996]
[1738865908270,1.75992615,96498.0,96497.0,2.05687996]
[1738865908913,1.68272615,96498.0,96497.0,1.03880196]
[1738865909266,1.68072615,96498.0,96497.0,1.03880196]
[1738865909676,1.68372615,96498.0,96497.0,1.03880196]
[1738865909934,1.69272615,96498.0,96497.0,1.03980196]
[1738865910102,1.68972615,96498.0,96497.0,1.03980196]
[1738865910315,2.00212615,96498.0,96497.0,0.98831848]
[1738865910523,1.98822615,96498.0,96497.0,0.85609509]
[1738865911040,1.98222615,96498.0,96497.0,0.38469157]
[1738865911242,1.98722615,96498.0,96497.0,0.32210746]
[1738865911492,1.99264385,96498.0,96497.0,0.18847746]
[1738865911940,1.98364385,96498.0,96497.0,0.05179744]
[1738865912138,1.99264385,96498.0,96497.0,0.05179744]
[1738865912353,2.28364385,96498.0,96497.0,0.01034544]
[1738865912555,0.585446,96496.0,96495.0,0.27521833]
[1738865912755,3.93029115,96496.0,96495.0,0.21304033]
[1738865913029,4.72323715,96496.0,96495.0,0.12678797]
[1738865913160,4.94963715,96496.0,96495.0,0.12197457]
[1738865913365,5.17293715,96496.0,96495.0,0.07535971]
[1738865913596,5.17293715,96496.0,96495.0,0.00542426]
[1738865913758,0.458459,96488.0,96487.0,0.0144785]
[1738865913957,5.78202185,96488.0,96487.0,0.0144785]
[1738865914201,5.98592185,96488.0,96487.0,0.0144785]
[1738865914401,0.203,96487.0,96486.0,5.48881379]
[1738865914608,5.02462715,96487.0,96486.0,5.48881379]
[1738865914806,5.03402715,96487.0,96486.0,5.48881379]
[1738865915014,4.49551115,96487.0,96486.0,5.48881379]
[1738865915216,2.22682215,96487.0,96486.0,5.48881379]
[1738865915450,1.95585015,96487.0,96486.0,5.48881379]
[1738865915655,1.80485015,96487.0,96486.0,5.48881379]
[1738865915819,1.79585015,96487.0,96486.0,5.48881379]
[1738865916197,0.26282015,96487.0,96486.0,5.48881379]
[1738865916404,5.11402715,96487.0,96486.0,5.48881379]
[1738865916655,5.12602715,96487.0,96486.0,5.48881379]
[1738865916891,5.10302715,96487.0,96486.0,5.48881379]
[1738865917424,5.10302715,96487.0,96486.0,5.46981379]
[1738865918849,5.12602715,96487.0,96486.0,5.46981379]
[1738865919078,4.98011515,96487.0,96486.0,5.46981379]
[1738865919689,4.94771515,96487.0,96486.0,5.46981379]
[1738865920026,1.94740215,96487.0,96486.0,5.46954489]
[1738865920512,1.87156415,96487.0,96486.0,5.46954489]
[1738865920719,1.86856415,96487.0,96486.0,5.46954489]
[1738865920928,1.81739815,96487.0,96486.0,5.46954489]
[1738865921076,1.80839815,96487.0,96486.0,5.46954489]
[1738865921428,1.81739815,96487.0,96486.0,5.46954489]
[1738865922021,1.80839815,96487.0,96486.0,5.46954489]
[1738865922371,1.81739815,96487.0,96486.0,5.45054489]
[1738865922576,1.82039815,96487.0,96486.0,5.45054489]
[1738865923008,1.81739815,96487.0,96486.0,5.45054489]
[1738865923586,1.81939815,96487.0,96486.0,5.45054489]
[1738865924023,1.80799815,96487.0,96486.0,5.45054489]
[1738865924236,1.81935815,96487.0,96486.0,5.45054489]
[1738865924573,1.81035815,96487.0,96486.0,5.45054489]
[1738865924976,1.81935815,96487.0,96486.0,5.45054489]
[1738865925234,1.81035815,96487.0,96486.0,5.45054489]
[1738865925585,1.80835815,96487.0,96486.0,5.45054489]
[1738865925781,1.81735815,96487.0,96486.0,5.45054489]
[1738865926006,1.81035815,96487.0,96486.0,5.45065169]
[1738865926206,1.96581915,96487.0,96486.0,5.45065169]
[1738865926387,1.96381915,96487.0,96486.0,5.45065169]
[1738865926594,1.96581915,96487.0,96486.0,5.45065169]
[1738865927402,1.97481915,96487.0,96486.0,5.43165169]
[1738865927717,1.96381915,96487.0,96486.0,5.43165169]
[1738865928148,1.97281915,96487.0,96486.0,5.43165169]
[1738865928302,1.96381915,96487.0,96486.0,5.43165169]
[1738865928503,1.97281915,96487.0,96486.0,5.43165169]
[1738865928843,1.96581915,96487.0,96486.0,5.43165169]
[1738865929297,1.97281915,96487.0,96486.0,5.43165169]
[1738865929719,1.97481915,96487.0,96486.0,5.43165169]
[1738865930132,1.97281915,96487.0,96486.0,5.43165169]
[1738865930339,1.97481915,96487.0,96486.0,5.43165169]
[1738865930546,1.96545915,96487.0,96486.0,5.43165169]
[1738865930748,1.25016315,96487.0,96486.0,5.43165169]
[1738865931039,0.71697315,96487.0,96486.0,5.43165169]
[1738865931434,0.72597315,96487.0,96486.0,5.43165169]
[1738865931638,0.71697315,96487.0,96486.0,5.43165169]
[1738865931795,0.70569315,96487.0,96486.0,5.43165169]
[1738865931993,0.56816115,96487.0,96486.0,5.50765169]
[1738865932198,1.22251615,96487.0,96486.0,5.50765169]
[1738865932405,1.21224315,96487.0,96486.0,5.48865169]
[1738865932599,1.21952315,96487.0,96486.0,5.48865169]
[1738865933044,1.06124315,96487.0,96486.0,5.48865169]
[1738865933259,1.07052315,96487.0,96486.0,5.48865169]
[1738865933413,0.56916115,96487.0,96486.0,5.48865169]
[1738865933611,0.1919165,96487.0,96486.0,5.48865169]
[1738865933809,0.0519165,96487.0,96486.0,5.48865169]
[1738865934244,0.2073775,96487.0,96486.0,5.48865169]
[1738865934617,0.3483775,96487.0,96486.0,5.48865169]
[1738865935043,0.2019165,96487.0,96486.0,5.48865169]
[1738865935215,0.2009165,96487.0,96486.0,5.48865169]
[1738865935436,0.2019165,96487.0,96486.0,5.48865169]
[1738865935844,0.2009165,96487.0,96486.0,5.48865169]
[1738865936042,0.3563775,96487.0,96486.0,5.48865169]
[1738865936265,0.4563775,96487.0,96486.0,5.48865169]
[1738865937383,0.4563775,96487.0,96486.0,5.46965169]
[1738865938735,0.456602,96487.0,96486.0,5.46965169]
[1738865940693,0.65910565,96487.0,96486.0,5.46965169]
[1738865940903,1.25718765,96487.0,96486.0,5.39365169]
[1738865941261,0.90774765,96487.0,96486.0,5.39365169]
[1738865941496,0.301141,96487.0,96486.0,5.39365169]
[1738865941635,0.301141,96487.0,96486.0,5.51725169]
[1738865941882,0.182141,96487.0,96486.0,5.51725169]
[1738865942562,0.183141,96487.0,96486.0,5.49825169]
[1738865943102,0.347602,96487.0,96486.0,5.49825169]
[1738865943307,0.192141,96487.0,96486.0,5.49825169]
[1738865943441,0.183141,96487.0,96486.0,5.49825169]
[1738865943640,0.187141,96487.0,96486.0,5.49825169]
[1738865944325,0.186141,96487.0,96486.0,5.49825169]
[1738865945384,0.1542245,96487.0,96486.0,5.49825169]
[1738865946035,0.18617676,96487.0,96486.0,5.49825169]
[1738865947467,0.18617676,96487.0,96486.0,5.47925169]
[1738865947674,0.29617676,96487.0,96486.0,5.47925169]
[1738865947843,0.45163776,96487.0,96486.0,5.47925169]
[1738865948067,0.65414141,96487.0,96486.0,5.47925169]
[1738865948281,2.14890541,96487.0,96486.0,5.35565169]
[1738865948631,1.79897341,96487.0,96486.0,5.35565169]
[1738865948816,1.60431841,96487.0,96486.0,5.35565169]
[1738865949006,1.52173941,96487.0,96486.0,5.35565169]
[1738865949183,1.54073941,96487.0,96486.0,5.35565169]
[1738865949731,1.54673941,96487.0,96486.0,5.35565169]
[1738865949938,1.54073941,96487.0,96486.0,5.35565169]
[1738865950253,0.86141341,96487.0,96486.0,5.35565169]
[1738865950459,0.79081341,96487.0,96486.0,5.35565169]
[1738865952612,0.78281341,96487.0,96486.0,5.35565169]
[1738865952854,0.79181341,96487.0,96486.0,5.35565169]
[1738865953401,0.79181341,96487.0,96486.0,5.33665169]
[1738865956904,0.66834141,96487.0,96486.0,5.33665169]
[1738865957097,5.35554841,96487.0,96486.0,5.33665169]
[1738865957339,5.35554841,96487.0,96486.0,5.3330506]
[1738865957474,5.35554841,96487.0,96486.0,5.3140506]
[1738865959847,4.74876341,96487.0,96486.0,5.3140506]
[1738865960176,3.81996841,96487.0,96486.0,5.3140506]
[1738865961153,3.04143241,96487.0,96486.0,5.3140506]
[1738865961511,2.94217641,96487.0,96486.0,5.3140506]
[1738865962120,2.13829776,96487.0,96486.0,5.4433506]
[1738865962321,0.45914141,96487.0,96486.0,5.4433506]
[1738865962523,0.83294641,96487.0,96486.0,5.2950506]
[1738865962870,0.85594641,96487.0,96486.0,5.2950506]
[1738865963413,0.93294641,96487.0,96486.0,5.2950506]
[1738865964834,1.28526498,96487.0,96486.0,5.1914106]
[1738865965552,1.25594641,96487.0,96486.0,5.1706826]
[1738865966527,1.24694641,96487.0,96486.0,4.9696826]
[1738865966685,1.25594641,96487.0,96486.0,4.9696826]
[1738865967192,1.25694641,96487.0,96486.0,4.9696826]
[1738865967599,1.25694641,96487.0,96486.0,4.9506826]
[1738865970242,1.25694641,96487.0,96486.0,4.81966808]
[1738865970243,1.62666498,96487.0,96486.0,4.81966808]
[1738865970651,1.59734641,96487.0,96486.0,4.79894008]
[1738865970875,1.59634641,96487.0,96486.0,4.73675608]
[1738865971084,1.61666498,96487.0,96486.0,4.73675608]
[1738865971440,0.91377341,96487.0,96486.0,4.73675608]
[1738865971641,0.59120541,96487.0,96486.0,4.73675608]
[1738865971855,0.73920541,96487.0,96486.0,4.63311608]
[1738865972076,0.82052398,96487.0,96486.0,4.63311608]
[1738865972517,0.82594166,96487.0,96486.0,4.51047608]
[1738865972741,0.82594166,96487.0,96486.0,4.43054142]
[1738865972957,0.63687766,96487.0,96486.0,4.43054142]
[1738865973159,3.56804709,96487.0,96486.0,4.43054142]
[1738865973383,3.57104709,96487.0,96486.0,4.38908542]
[1738865973565,3.58004709,96487.0,96486.0,4.34762942]
[1738865973786,3.57104709,96487.0,96486.0,4.32690142]
[1738865973988,3.55888709,96487.0,96486.0,4.32690142]
[1738865974120,3.58008709,96487.0,96486.0,4.32690142]
[1738865974318,3.57108709,96487.0,96486.0,4.24398942]
[1738865974522,3.56108709,96487.0,96486.0,4.22326142]
[1738865974765,3.58008709,96487.0,96486.0,4.22326142]
[1738865974964,3.57108709,96487.0,96486.0,4.22326142]
[1738865975382,3.57108709,96487.0,96486.0,4.16107742]
[1738865975598,3.57108709,96487.0,96486.0,4.14034942]
[1738865975798,3.57108709,96487.0,96486.0,4.11962142]
[1738865976408,3.55788709,96487.0,96486.0,4.03670942]
[1738865976609,3.86104709,96487.0,96486.0,4.01598142]
[1738865976855,3.87004709,96487.0,96486.0,4.01598142]
[1738865977165,3.85804709,96487.0,96486.0,4.01598142]
[1738865977458,3.86104709,96487.0,96486.0,3.93479742]
[1738865977599,3.87004709,96487.0,96486.0,3.89334142]
[1738865977799,3.86104709,96487.0,96486.0,3.89334142]
[1738865978002,3.85804709,96487.0,96486.0,3.89334142]
[1738865978204,3.87004709,96487.0,96486.0,3.89334142]
[1738865979367,3.90936566,96487.0,96486.0,3.82734083]
[1738865979718,3.90936566,96487.0,96486.0,3.76515683]
[1738865979943,3.88004709,96487.0,96486.0,3.74442883]
[1738865980298,3.90936566,96487.0,96486.0,3.72370083]
[1738865980511,3.90036566,96487.0,96486.0,3.70297283]
[1738865980715,3.87104709,96487.0,96486.0,3.66151683]
[1738865981052,3.53341609,96487.0,96486.0,3.64078883]
[1738865981334,3.53641609,96487.0,96486.0,3.62006083]
[1738865981542,3.53641609,96487.0,96486.0,3.57860483]
[1738865981895,3.85681609,96487.0,96486.0,3.53714883]
[1738865982505,3.85381609,96487.0,96486.0,3.43523683]
[1738865982908,3.85681609,96487.0,96486.0,3.41450883]
[1738865983306,3.85681609,96487.0,96486.0,3.39378083]
[1738865983852,1.24011909,96487.0,96486.0,3.37305283]
[1738865984179,5.92732609,96487.0,96486.0,3.31086883]
[1738865984715,5.49816609,96487.0,96486.0,3.20722883]
[1738865984897,5.92724609,96487.0,96486.0,3.20722883]
[1738865985322,5.92724609,96487.0,96486.0,3.18650083]
[1738865985540,5.91816609,96487.0,96486.0,3.10358883]
[1738865985856,5.92724609,96487.0,96486.0,3.10358883]
[1738865986849,5.92724609,96487.0,96486.0,3.04140483]
[1738865987457,5.92724609,96487.0,96486.0,2.95454596]
[1738865987708,5.92724609,96487.0,96486.0,2.93381796]
[1738865987914,5.92724609,96487.0,96486.0,2.91308996]
[1738865988231,5.92724609,96487.0,96486.0,2.89236196]
[1738865989231,5.92724609,96487.0,96486.0,2.85090596]
[1738865989734,5.92724609,96487.0,96486.0,2.83017796]
[1738865989940,5.92724609,96487.0,96486.0,2.80944996]
[1738865990146,5.92720609,96487.0,96486.0,2.74726596]
[1738865990399,5.92720609,96487.0,96486.0,2.72653796]
[1738865990874,5.91816609,96487.0,96486.0,2.70580996]
[1738865991197,5.92720609,96487.0,96486.0,2.64362596]
[1738865992599,5.92720609,96487.0,96486.0,2.58316996]
[1738865996051,5.92720609,96487.0,96486.0,2.56244196]
[1738865996246,5.92720609,96487.0,96486.0,2.54171396]
[1738865996454,5.92720609,96487.0,96486.0,2.49744583]
[1738865996794,5.95652466,96487.0,96486.0,1.88225712]
[1738865997073,5.96235858,96487.0,96486.0,1.86628365]
[1738865997273,5.92720609,96487.0,96486.0,1.86628365]
[1738865997534,5.92720609,96487.0,96486.0,1.74364365]
[1738865997685,5.91820609,96487.0,96486.0,1.74364365]
[1738865998016,6.03330609,96487.0,96486.0,1.74364365]
[1738865998420,6.03630609,96487.0,96486.0,1.70218765]
[1738865998606,6.04530609,96487.0,96486.0,1.64000365]
[1738865998775,6.04230609,96487.0,96486.0,1.64000365]
[1738865999092,6.04530609,96487.0,96486.0,1.61600343]
[1738865999618,6.04530609,96487.0,96486.0,1.01830105]
[1738865999752,6.04530609,96487.0,96486.0,0.99757305]
[1738866000162,6.04530609,96487.0,96486.0,0.97684505]
[1738866000369,6.04530609,96487.0,96486.0,0.95611705]
[1738866000670,6.04530609,96487.0,96486.0,0.81212205]
[1738866001275,6.04530609,96487.0,96486.0,0.79139305]
[1738866001564,6.04530609,96487.0,96486.0,0.70374519]
[1738866001776,0.444566,96484.0,96483.0,4.98317116]
[1738866001983,1.53450577,96484.0,96483.0,3.88614449]
[1738866002152,1.56645803,96484.0,96483.0,2.77229508]
[1738866002377,1.56645803,96484.0,96483.0,1.08402904]
[1738866002378,1.51462191,96484.0,96483.0,1.08402904]
[1738866002583,3.29775803,96484.0,96483.0,0.62829332]
[1738866002805,3.29671803,96484.0,96483.0,0.62829332]
[1738866002959,3.30971803,96484.0,96483.0,0.62829332]
[1738866003279,0.94458,96475.0,96474.0,5.0194387]
[1738866003420,7.10091901,96475.0,96474.0,4.085184]
[1738866003622,7.50821901,96475.0,96474.0,3.66975864]
[1738866003818,8.09420411,96475.0,96474.0,3.66975864]
[1738866004061,8.09420411,96475.0,96474.0,3.66964685]
[1738866004472,8.09420411,96475.0,96474.0,3.58131949]
[1738866004645,8.10320411,96475.0,96474.0,3.56058849]
[1738866005079,8.04272758,96475.0,96474.0,1.87942317]
[1738866005283,8.09420411,96475.0,96474.0,1.54701034]
[1738866005507,8.04572758,96475.0,96474.0,0.52080619]
[1738866005718,8.09720411,96475.0,96474.0,0.42084149]
[1738866005918,8.09720411,96475.0,96463.0,5.42098579]
[1738866005919,0.858498,96464.0,96463.0,5.42098579]
[1738866006101,7.25484731,96464.0,96463.0,5.42098579]
[1738866006296,7.25484731,96464.0,96463.0,5.40025279]
[1738866006482,7.25484731,96464.0,96463.0,5.35398664]
[1738866006683,7.26380731,96464.0,96463.0,5.31252064]
[1738866007077,7.26427089,96464.0,96463.0,5.31252064]
[1738866007331,7.26431089,96464.0,96463.0,5.31252064]
[1738866007531,7.23756618,96464.0,96463.0,5.29845464]
[1738866007835,5.5057292,96464.0,96463.0,5.29845464]
[1738866008038,5.5147292,96464.0,96463.0,5.29845464]
[1738866008240,5.5157292,96464.0,96463.0,5.18627079]
[1738866008439,5.5287292,96464.0,96463.0,4.65739688]
[1738866008646,5.5517292,96464.0,96463.0,4.55743218]
[1738866009081,5.5487292,96464.0,96463.0,4.55743218]
[1738866009257,5.5517292,96464.0,96463.0,4.55743218]
[1738866009482,5.53547391,96464.0,96463.0,4.49523318]
[1738866009858,5.53547391,96464.0,96463.0,4.45376718]
[1738866010098,5.54447391,96464.0,96463.0,4.45376718]
[1738866010303,5.53547391,96464.0,96463.0,4.45376718]
[1738866010506,5.53247391,96464.0,96463.0,4.41230118]
[1738866010706,5.54147391,96464.0,96463.0,4.35010218]
[1738866010918,5.53547391,96464.0,96463.0,4.35010218]
[1738866011254,5.54447391,96464.0,96463.0,4.35010218]
[1738866011462,5.54147391,96464.0,96463.0,4.32936918]
[1738866011662,5.15105489,96464.0,96463.0,4.38613618]
[1738866011814,5.16001489,96464.0,96463.0,4.38613618]
[1738866012196,5.01001489,96464.0,96463.0,4.38613618]
[1738866012408,5.03301489,96464.0,96463.0,4.38613618]
[1738866012630,5.18301489,96464.0,96463.0,4.38613618]
[1738866013085,5.19926888,96464.0,96463.0,4.38613618]
[1738866013275,5.19026888,96464.0,96463.0,4.38613618]
[1738866013477,5.19026888,96464.0,96463.0,4.36713618]
[1738866013684,5.19626888,96464.0,96463.0,4.36713618]
[1738866013882,5.16430888,96464.0,96463.0,4.41353618]
[1738866014040,2.24191788,96464.0,96463.0,4.41353618]
[1738866014237,6.92912488,96464.0,96463.0,4.41353618]
[1738866014444,6.83008888,96464.0,96463.0,4.41353618]
[1738866014696,2.43956089,96464.0,96463.0,4.41353618]
[1738866014845,2.29852089,96464.0,96463.0,4.41353618]
[1738866015274,1.96071689,96464.0,96463.0,4.41353618]
[1738866015519,1.95771689,96464.0,96463.0,4.41353618]
[1738866016859,2.09871689,96464.0,96463.0,4.41353618]
[1738866017407,2.09871689,96464.0,96463.0,4.39453618]
[1738866017408,2.11071689,96464.0,96463.0,4.39453618]
[1738866017626,2.10171689,96464.0,96463.0,4.39453618]
[1738866017841,2.09871689,96464.0,96463.0,4.39453618]
[1738866018036,2.10771689,96464.0,96463.0,4.39453618]
[1738866018726,2.10871689,96464.0,96463.0,4.39453618]
[1738866018967,1.72035859,96464.0,96463.0,4.39453618]
[1738866019173,1.68755859,96464.0,96463.0,4.39453618]
[1738866019948,1.70912659,96464.0,96463.0,4.39453618]
[1738866020199,1.72395859,96464.0,96463.0,4.39453618]
[1738866020395,1.56007959,96464.0,96463.0,4.39453618]
[1738866021076,1.69114159,96464.0,96463.0,4.39453618]
[1738866021281,5.47132259,96464.0,96463.0,4.39453618]
[1738866021479,6.24728659,96464.0,96463.0,4.39453618]
[1738866022068,6.24751109,96464.0,96463.0,4.39453618]
[1738866022490,6.24751109,96464.0,96463.0,4.37553618]
[1738866022897,5.61271109,96464.0,96463.0,4.37553618]
[1738866023311,4.20488809,96464.0,96463.0,4.37553618]
[1738866023901,3.97059209,96464.0,96463.0,4.37553618]
[1738866025515,1.56030409,96464.0,96463.0,4.37553618]
[1738866025818,5.28679009,96464.0,96463.0,4.37553618]
[1738866026041,5.13956909,96464.0,96463.0,4.37553618]
[1738866027564,5.13956909,96464.0,96463.0,4.35653618]
[1738866028168,4.98125109,96464.0,96463.0,4.35653618]
[1738866028821,4.97077709,96464.0,96463.0,4.35653618]
[1738866029122,4.96181709,96464.0,96463.0,4.35653618]
[1738866029463,4.58607309,96464.0,96463.0,4.35653618]
[1738866029631,3.68584709,96464.0,96463.0,4.35653618]
[1738866029832,3.10065609,96464.0,96463.0,4.35653618]
[1738866030067,1.12114644,96464.0,96463.0,4.35653618]
[1738866030240,0.2015,96475.0,96464.0,0.0814]
[1738866030455,0.2015,96475.0,96465.0,0.1273]
[1738866030456,0.155495,96466.0,96465.0,0.1273]
[1738866030660,0.34747346,96466.0,96465.0,0.1273]
[1738866031287,0.34747346,96466.0,96465.0,0.1263]
[1738866032632,0.35147346,96466.0,96465.0,0.1073]
[1738866032829,0.34747346,96466.0,96465.0,0.1073]
[1738866033026,0.64610611,96466.0,96465.0,0.1073]
[1738866033241,0.65010611,96466.0,96465.0,0.1073]
[1738866033397,0.64610611,96466.0,96465.0,0.1073]
[1738866033752,0.65310611,96466.0,96465.0,0.1083]
[1738866033961,0.65310611,96466.0,96465.0,0.001]
[1738866034157,0.405498,96464.0,96463.0,4.23268258]
[1738866034310,1.95709211,96464.0,96463.0,4.23268258]
[1738866034513,2.19549511,96464.0,96463.0,4.23268258]
[1738866034743,1.64758011,96464.0,96463.0,4.23268258]
[1738866035051,1.65758011,96464.0,96463.0,4.23268258]
[1738866035273,1.65758011,96464.0,96463.0,4.23368258]
[1738866035978,1.66358011,96464.0,96463.0,4.23368258]
[1738866037429,1.75574402,96464.0,96463.0,4.23368258]
[1738866037629,1.76470402,96464.0,96463.0,4.21468258]
[1738866038186,1.79402259,96464.0,96463.0,4.15248358]
[1738866038408,1.76470402,96464.0,96463.0,4.09028458]
[1738866039182,1.75870402,96464.0,96463.0,4.09028458]
[1738866039605,1.76770402,96464.0,96463.0,4.08928458]
[1738866039940,1.76070402,96464.0,96463.0,4.08928458]
[1738866040091,1.76970402,96464.0,96463.0,4.08928458]
[1738866040300,1.67554011,96464.0,96463.0,4.08928458]
[1738866040691,1.67754011,96464.0,96463.0,4.08928458]
[1738866041120,1.66858011,96464.0,96463.0,4.08928458]
[1738866041337,1.67754011,96464.0,96463.0,4.08928458]
[1738866042579,1.67754011,96464.0,96463.0,4.07028458]
[1738866043261,1.67554011,96464.0,96463.0,4.07028458]
[1738866043626,1.67754011,96464.0,96463.0,4.07028458]
[1738866044187,1.70485868,96464.0,96463.0,4.02881858]
[1738866044304,1.67754011,96464.0,96463.0,4.00808558]
[1738866044893,1.67554011,96464.0,96463.0,4.00808558]
[1738866045226,1.67754011,96464.0,96463.0,4.00808558]
[1738866045434,1.66854011,96464.0,96463.0,4.00808558]
[1738866045857,1.67754011,96464.0,96463.0,4.00808558]
[1738866046058,1.66854011,96464.0,96463.0,4.00808558]
[1738866046501,1.67554011,96464.0,96463.0,4.00808558]
[1738866046635,1.66654011,96464.0,96463.0,4.00808558]
[1738866046837,1.66854011,96464.0,96463.0,4.00808558]
[1738866047046,1.67754011,96464.0,96463.0,4.00808558]
[1738866047244,1.66654011,96464.0,96463.0,4.00808558]
[1738866047448,1.66654011,96464.0,96463.0,3.98908558]
[1738866048042,1.66754011,96464.0,96463.0,3.98908558]
[1738866048667,1.67654011,96464.0,96463.0,3.98908558]
[1738866048845,1.66754011,96464.0,96463.0,3.98908558]
[1738866049263,1.67654011,96464.0,96463.0,3.98908558]
[1738866049464,0.56894011,96464.0,96463.0,3.98908558]
[1738866049668,5.25514711,96464.0,96463.0,3.98908558]
[1738866050555,5.24614711,96464.0,96463.0,3.98908558]
[1738866050792,5.30805151,96464.0,96463.0,3.98908558]
[1738866050962,5.16155151,96464.0,96463.0,3.98908558]
[1738866051361,1.95080651,96464.0,96463.0,4.03628558]
[1738866051686,1.95080651,96464.0,96463.0,4.11198558]
[1738866051687,0.53950386,96464.0,96463.0,4.11198558]
[1738866051980,0.54950386,96464.0,96463.0,4.11198558]
[1738866052200,0.54050386,96464.0,96463.0,4.11198558]
[1738866052377,0.39050386,96464.0,96463.0,4.11198558]
[1738866052700,0.38950386,96464.0,96463.0,4.09298558]
[1738866052842,0.38050386,96464.0,96463.0,4.09298558]
[1738866053560,0.37950386,96464.0,96463.0,4.09298558]
[1738866053758,0.43947646,96464.0,96463.0,4.09298558]
[1738866054369,0.44947646,96464.0,96463.0,4.09298558]
[1738866055585,0.44747646,96464.0,96463.0,4.09298558]
[1738866055796,0.54998011,96464.0,96463.0,4.09298558]
[1738866055981,0.55198011,96464.0,96463.0,3.97008558]
[1738866056200,2.64739611,96464.0,96463.0,3.97008558]
[1738866056360,2.23550911,96464.0,96463.0,3.97008558]
[1738866056559,2.16341911,96464.0,96463.0,3.97008558]
[1738866056792,1.72434311,96464.0,96463.0,3.97008558]
[1738866056940,1.61144111,96464.0,96463.0,3.97008558]
[1738866057597,1.61144111,96464.0,96463.0,3.94825555]
[1738866058389,1.61166561,96464.0,96463.0,3.94825555]
[1738866058717,1.61166561,96464.0,96463.0,3.86532355]
[1738866058891,1.61166561,96464.0,96463.0,3.84459055]
[1738866059272,1.60666561,96464.0,96463.0,3.84459055]
[1738866059859,1.60766561,96464.0,96463.0,3.84459055]
[1738866060246,1.61566561,96464.0,96463.0,3.84459055]
[1738866060577,1.61666561,96464.0,96463.0,3.84459055]
[1738866061209,2.05896561,96464.0,96463.0,3.74092555]
[1738866061417,2.05896561,96464.0,96463.0,3.63726055]
[1738866061418,2.08828418,96464.0,96463.0,3.63726055]
[1738866061725,2.06796561,96464.0,96463.0,3.63726055]
[1738866061932,1.01150461,96464.0,96463.0,3.63726055]
[1738866062145,5.22385661,96464.0,96463.0,3.63726055]
[1738866062336,5.45146161,96464.0,96463.0,3.61652755]
[1738866062572,4.33487461,96464.0,96463.0,3.51459555]
[1738866063745,4.33387461,96464.0,96463.0,3.51459555]
[1738866063988,3.88457461,96464.0,96463.0,3.51459555]
[1738866064221,0.78614461,96464.0,96463.0,3.51459555]
[1738866064450,0.77714461,96464.0,96463.0,3.51459555]
[1738866064686,0.78614461,96464.0,96463.0,3.51459555]
[1738866064908,0.77714461,96464.0,96463.0,3.51459555]
[1738866065438,0.78414461,96464.0,96463.0,3.51459555]
[1738866065662,0.77714461,96464.0,96463.0,3.51459555]
[1738866065863,0.78614461,96464.0,96463.0,3.51459555]
[1738866065994,0.77714461,96464.0,96463.0,3.51459555]
[1738866066218,0.77514461,96464.0,96463.0,3.51459555]
[1738866066415,0.78414461,96464.0,96463.0,3.51459555]
[1738866067026,0.78514461,96464.0,96463.0,3.51459555]
[1738866067231,0.67514461,96464.0,96463.0,3.51459555]
[1738866067434,0.69896461,96464.0,96463.0,3.49559555]
[1738866067757,0.56916461,96464.0,96463.0,3.49559555]
[1738866068169,0.56016461,96464.0,96463.0,3.49559555]
[1738866068503,0.56816461,96464.0,96463.0,3.49559555]
[1738866068712,0.80304461,96464.0,96463.0,3.49559555]
[1738866068958,0.80404461,96464.0,96463.0,3.49559555]
[1738866069190,0.80404461,96464.0,96463.0,3.47486255]
[1738866069416,0.80404461,96464.0,96463.0,3.28826555]
[1738866069632,1.16752331,96464.0,96463.0,3.28826555]
[1738866070042,1.18952331,96464.0,96463.0,3.28826555]
[1738866070451,1.19152331,96464.0,96463.0,3.22606655]
[1738866070673,1.18252331,96464.0,96463.0,3.18460055]
[1738866070848,1.19152331,96464.0,96463.0,3.18460055]
[1738866071206,1.18252331,96464.0,96463.0,3.18460055]
[1738866071404,1.19152331,96464.0,96463.0,3.12240155]
[1738866071754,1.18952331,96464.0,96463.0,3.08093555]
[1738866071962,1.19152331,96464.0,96463.0,3.08093555]
[1738866073042,1.19152331,96464.0,96463.0,3.01873655]
[1738866073477,1.19152331,96464.0,96463.0,2.95827055]
[1738866075014,1.19152331,96464.0,96463.0,2.93753755]
[1738866075528,1.16852331,96464.0,96463.0,2.93753755]
[1738866077392,1.15952331,96464.0,96463.0,2.91680455]
[1738866077595,1.18252331,96464.0,96463.0,2.81487255]
[1738866077798,1.26992331,96464.0,96463.0,2.81487255]
[1738866078151,1.27192331,96464.0,96463.0,2.81487255]
[1738866078352,1.27192331,96464.0,96463.0,2.77340655]
[1738866078555,1.26092331,96464.0,96463.0,2.71120755]
[1738866078767,1.26292331,96464.0,96463.0,2.71120755]
[1738866079063,1.27192331,96464.0,96463.0,2.71120755]
[1738866079271,1.27192331,96464.0,96463.0,2.69047455]
[1738866079640,1.27192331,96464.0,96463.0,2.64900855]
[1738866080408,1.27192331,96464.0,96463.0,2.58680955]
[1738866080847,1.27192331,96464.0,96463.0,2.54534355]
[1738866081413,1.27192331,96464.0,96463.0,2.52461055]
[1738866081851,1.19152331,96464.0,96463.0,2.48314455]
[1738866082045,1.19152331,96464.0,96463.0,2.44167855]
[1738866082398,1.19152331,96464.0,96463.0,2.33974655]
[1738866082606,1.19152331,96464.0,96463.0,2.31901355]
[1738866082846,1.27551894,96464.0,96463.0,2.31901355]
[1738866083055,1.24653464,96464.0,96463.0,2.31901355]
[1738866083462,1.21152331,96464.0,96463.0,2.23608155]
[1738866083630,1.21152331,96464.0,96463.0,2.21534855]
[1738866084013,1.20252331,96464.0,96463.0,2.21534855]
[1738866084538,1.20952331,96464.0,96463.0,2.13241655]